fUSD/lending_fUSD_20241024
["ID","MTS","AMOUNT","RATE_DAILY","PERIOD"]
[340778078,1729798245819,-151.0,0.00063457,120]
[340778079,1729798245830,-6651.0125767,0.00063457,3]
[340778080,1729798245840,-2568.135753,0.00063457,120]
[340778081,1729798245849,-2568.135753,0.00063457,120]
[340778082,1729798245859,-151.0,0.00063457,120]
[340778083,1729798245869,-37686.1188284,0.00063457,3]
[340778084,1729798245880,-2008.4387906,0.00063457,3]
[340778085,1729798245890,-500.0,0.00063497,120]
[340778086,1729798245900,-500.0,0.00063497,60]
[340778087,1729798245910,-490.6,0.00063497,120]
[340778088,1729798245920,-500.0,0.00063497,120]
[340778089,1729798245931,-500.0,0.00063497,120]
[340778090,1729798245942,-600.44,0.00063497,120]
[340778091,1729798245953,-598.64,0.00063497,120]
[340778092,1729798245965,-1824.17,0.00063497,120]
[340778093,1729798245976,-558.21876323,0.00063498,120]
[340778094,1729798245986,-723.54,0.00063498,120]
[340778095,1729798245997,-500.0,0.00063498,120]
[340778096,1729798246008,-500.0,0.00063498,120]
[340778097,1729798246018,-520.09,0.00063498,120]
[340778098,1729798246028,-500.0,0.00063498,120]
[340778099,1729798246037,-298.09157866,0.00063498,120]
[340778100,1729798246050,-183.498451,0.00063498,120]
[340778101,1729798246060,-728.57,0.00063498,120]
[340778102,1729798246071,-757.63,0.00063498,120]
[340778103,1729798246081,-500.0,0.00063498,120]
[340778104,1729798246091,-516.15,0.00063498,120]
[340778105,1729798246103,-500.0,0.00063498,120]
[340778106,1729798246114,-802.41,0.00063498,120]
[340778107,1729798246125,-2884.96,0.00063498,120]
[340778108,1729798246135,-723.54,0.00063499,120]
[340778109,1729798246146,-723.54,0.00063499,120]
[340778110,1729798246156,-723.54,0.00063499,120]
[340778111,1729798246167,-723.54,0.00063499,120]
[340778112,1729798246178,-723.54,0.00063499,120]
[340778113,1729798246187,-723.54,0.00063499,120]
[340778114,1729798246198,-723.54,0.00063499,120]
[340778115,1729798246209,-723.54,0.00063499,120]
[340778116,1729798246220,-723.54,0.00063499,120]
[340778117,1729798246230,-723.54,0.00063499,120]
[340778118,1729798246239,-723.62327685,0.00063499,120]
[340778119,1729798246250,-500.0,0.00063499,120]
[340778120,1729798246259,-500.0,0.00063499,120]
[340778121,1729798246268,-500.0,0.00063499,120]
[340778122,1729798246278,-500.0,0.00063499,120]
[340778123,1729798246287,-500.0,0.00063499,120]
[340778124,1729798246297,-331.69413583,0.00063499,120]
[340778125,1729798246306,-500.0,0.00063499,120]
[340778126,1729798246316,-500.0,0.00063499,120]
[340778127,1729798246325,-187.99412233,0.00063499,120]
[340778128,1729798246335,-500.0,0.00063499,60]
[340778129,1729798246344,-173.64233532,0.00063499,60]
[340778130,1729798246354,-335.231859,0.00063499,110]
[340778131,1729798246363,-335.231859,0.00063499,110]
[340778132,1729798246373,-336.57506714,0.00063499,120]
[340778133,1729798246382,-500.0,0.00063499,120]
[340778134,1729798246391,-500.0,0.00063499,120]
[340778135,1729798246401,-500.0,0.00063499,120]
[340778136,1729798246410,-500.0,0.00063499,120]
[340778137,1729798246419,-152.8796183,0.00063499,120]
[340778138,1729798246428,-500.0,0.00063499,120]
[340778139,1729798246438,-500.0,0.00063499,120]
[340778140,1729798246447,-500.0,0.00063499,120]
[340778141,1729798246456,-500.0,0.00063499,120]
[340778142,1729798246467,-500.0,0.00063499,120]
[340778143,1729798246476,-500.0,0.00063499,120]
[340778144,1729798246486,-500.0,0.00063499,120]
[340778145,1729798246495,-600.44,0.00063499,120]
[340778146,1729798246504,-600.44,0.00063499,120]
[340778147,1729798246513,-600.44,0.00063499,120]
[340778148,1729798246522,-600.44,0.00063499,120]
[340778149,1729798246532,-600.44,0.00063499,120]
[340778150,1729798246541,-600.44,0.00063499,120]
[340778151,1729798246551,-600.44,0.00063499,120]
[340778152,1729798246560,-600.44,0.00063499,120]
[340778153,1729798246568,-600.44,0.00063499,120]
[340778154,1729798246577,-520.09,0.00063499,120]
[340778155,1729798246586,-520.09,0.00063499,120]
[340778156,1729798246596,-520.09,0.00063499,120]
[340778157,1729798246605,-520.09,0.00063499,120]
[340778158,1729798246614,-520.09,0.00063499,120]
[340778159,1729798246623,-520.09,0.00063499,120]
[340778160,1729798246634,-520.09,0.00063499,120]
[340778161,1729798246644,-520.09,0.00063499,120]
[340778162,1729798246655,-520.09,0.00063499,120]
[340778163,1729798246664,-520.09,0.00063499,120]
[340778164,1729798246673,-520.26,0.00063499,120]
[340778165,1729798246682,-500.0,0.00063499,120]
[340778166,1729798246692,-500.0,0.00063499,120]
[340778167,1729798246702,-500.0,0.00063499,120]
[340778168,1729798246711,-500.0,0.00063499,120]
[340778169,1729798246722,-371.41732712,0.00063499,120]
[340778170,1729798246731,-598.64,0.00063499,120]
[340778171,1729798246740,-598.64,0.00063499,120]
[340778172,1729798246749,-598.64,0.00063499,120]
[340778173,1729798246759,-598.64,0.00063499,120]
[340778174,1729798246769,-598.64,0.00063499,120]
[340778175,1729798246779,-598.64,0.00063499,120]
[340778176,1729798246788,-598.64,0.00063499,120]
[340778177,1729798246798,-598.64,0.00063499,120]
[340778178,1729798246808,-598.64,0.00063499,120]
[340778179,1729798246818,-1824.17,0.00063499,120]
[340778180,1729798246828,-1824.17,0.00063499,120]
[340778181,1729798246837,-1824.17,0.00063499,120]
[340778182,1729798246847,-1824.17,0.00063499,120]
[340778183,1729798246858,-1824.17,0.00063499,120]
[340778184,1729798246867,-1824.17,0.00063499,120]
[340778185,1729798246876,-1824.17,0.00063499,120]
[340778186,1729798246886,-1824.17,0.00063499,120]
[340778187,1729798246896,-1824.17,0.00063499,120]
[340778188,1729798246906,-5077.43,0.00063499,120]
[340778189,1729798246916,-5077.43,0.00063499,120]
[340778190,1729798246926,-5077.43,0.00063499,120]
[340778191,1729798246935,-5077.43,0.00063499,120]
[340778192,1729798246945,-5077.43,0.00063499,120]
[340778193,1729798246954,-5077.43,0.00063499,120]
[340778194,1729798246964,-5077.43,0.00063499,120]
[340778195,1729798246975,-5077.43,0.00063499,120]
[340778196,1729798246985,-5077.43,0.00063499,120]
[340778197,1729798246995,-5077.43,0.00063499,120]
[340778198,1729798247005,-5077.5843,0.00063499,120]
[340778199,1729798247014,-151.0,0.00063499,120]
[340778200,1729798247024,-728.57,0.00063499,120]
[340778201,1729798247034,-728.57,0.00063499,120]
[340778202,1729798247044,-728.57,0.00063499,120]
[340778203,1729798247058,-728.57,0.00063499,120]
[340778204,1729798247068,-728.57,0.00063499,120]
[340778205,1729798247078,-728.57,0.00063499,120]
[340778206,1729798247087,-728.57,0.00063499,120]
[340778207,1729798247097,-728.57,0.00063499,120]
[340778208,1729798247107,-728.57,0.00063499,120]
[340778209,1729798247116,-728.57,0.00063499,120]
[340778210,1729798247126,-728.65443804,0.00063499,120]
[340778211,1729798247135,-757.63,0.00063499,120]
[340778212,1729798247145,-757.63,0.00063499,120]
[340778213,1729798247155,-757.63,0.00063499,120]
[340778214,1729798247164,-757.63,0.00063499,120]
[340778215,1729798247173,-757.63,0.00063499,120]
[340778216,1729798247183,-757.63,0.00063499,120]
[340778217,1729798247192,-757.63,0.00063499,120]
[340778218,1729798247202,-757.63,0.00063499,120]
[340778219,1729798247211,-757.63,0.00063499,120]
[340778220,1729798247221,-757.63,0.00063499,120]
[340778221,1729798247230,-757.85507082,0.00063499,120]
[340778222,1729798247240,-151.0,0.00063499,120]
[340778223,1729798247249,-1181.43,0.00063499,21]
[340778224,1729798247258,-1181.43,0.00063499,21]
[340778225,1729798247268,-1181.43,0.00063499,21]
[340778226,1729798247277,-1181.43,0.00063499,21]
[340778227,1729798247286,-1181.43,0.00063499,21]
[340778228,1729798247295,-1181.43,0.00063499,21]
[340778229,1729798247305,-1181.43,0.00063499,21]
[340778230,1729798247314,-1181.43,0.00063499,21]
[340778231,1729798247323,-1181.43,0.00063499,21]
[340778232,1729798247332,-1181.43,0.00063499,21]
[340778233,1729798247341,-1181.64,0.00063499,21]
[340778234,1729798247351,-500.0,0.00063499,120]
[340778235,1729798247360,-500.0,0.00063499,120]
[340778236,1729798247369,-500.0,0.00063499,120]
[340778237,1729798247379,-500.0,0.00063499,120]
[340778238,1729798247388,-500.0,0.00063499,120]
[340778239,1729798247398,-500.0,0.00063499,120]
[340778240,1729798247407,-500.0,0.00063499,120]
[340778241,1729798247416,-500.0,0.00063499,120]
[340778242,1729798247426,-500.0,0.00063499,120]
[340778243,1729798247435,-500.0,0.00063499,120]
[340778244,1729798247444,-283.749339,0.00063499,120]
[340778245,1729798247453,-624.65,0.00063499,120]
[340778246,1729798247463,-624.65,0.00063499,120]
[340778247,1729798247472,-624.65,0.00063499,120]
[340778248,1729798247482,-624.65,0.00063499,120]
[340778249,1729798247501,-624.65,0.00063499,120]
[340778250,1729798247511,-624.65,0.00063499,120]
[340778251,1729798247521,-624.65,0.00063499,120]
[340778252,1729798247531,-624.65,0.00063499,120]
[340778253,1729798247542,-624.65,0.00063499,120]
[340778254,1729798247551,-624.65,0.00063499,120]
[340778255,1729798247560,-624.85,0.00063499,120]
[340778256,1729798247569,-516.15,0.00063499,120]
[340778257,1729798247579,-516.15,0.00063499,120]
[340778258,1729798247588,-516.15,0.00063499,120]
[340778259,1729798247597,-516.15,0.00063499,120]
[340778260,1729798247606,-516.15,0.00063499,120]
[340778261,1729798247615,-516.15,0.00063499,120]
[340778262,1729798247625,-516.15,0.00063499,120]
[340778263,1729798247634,-516.15,0.00063499,120]
[340778264,1729798247643,-516.15,0.00063499,120]
[340778265,1729798247652,-516.3,0.00063499,120]
[340778266,1729798247661,-500.0,0.00063499,120]
[340778267,1729798247671,-500.0,0.00063499,120]
[340778268,1729798247680,-500.0,0.00063499,120]
[340778269,1729798247690,-267.77000001,0.00063499,120]
[340778270,1729798247699,-2568.135753,0.00063499,120]
[340778271,1729798247708,-2568.135753,0.00063499,120]
[340778272,1729798247718,-151.0,0.00063499,120]
[340778273,1729798247727,-802.41,0.00063499,120]
[340778274,1729798247737,-802.41,0.00063499,120]
[340778275,1729798247746,-802.41,0.00063499,120]
[340778276,1729798247755,-802.41,0.00063499,120]
[340778277,1729798247765,-802.41,0.00063499,120]
[340778278,1729798247774,-802.41,0.00063499,120]
[340778279,1729798247784,-802.41,0.00063499,120]
[340778280,1729798247793,-802.41,0.00063499,120]
[340778281,1729798247802,-802.41,0.00063499,120]
[340778282,1729798247811,-802.41,0.00063499,120]
[340778283,1729798247821,-802.52,0.00063499,120]
[340778284,1729798247831,-1184.89,0.00063499,120]
[340778285,1729798247840,-1184.89,0.00063499,120]
[340778286,1729798247850,-1184.89,0.00063499,120]
[340778287,1729798247859,-1184.89,0.00063499,120]
[340778288,1729798247869,-1184.89,0.00063499,120]
[340778289,1729798247879,-2884.96,0.00063499,120]
[340778290,1729798247889,-1184.89,0.00063499,120]
[340778291,1729798247898,-2884.96,0.00063499,120]
[340778292,1729798247908,-1184.89,0.00063499,120]
[340778293,1729798247917,-2884.96,0.00063499,120]
[340778294,1729798247927,-2884.96,0.00063499,120]
[340778295,1729798247936,-1184.89,0.00063499,120]
[340778296,1729798247945,-2884.96,0.00063499,120]
[340778297,1729798247955,-1184.89,0.00063499,120]
[340778298,1729798247964,-2884.96,0.00063499,120]
[340778299,1729798247975,-1184.89,0.00063499,120]
[340778300,1729798247984,-1185.05241975,0.00063499,120]
[340778301,1729798247994,-2884.96,0.00063499,120]
[340778302,1729798248004,-2884.96,0.00063499,120]
[340778303,1729798248013,-2884.96,0.00063499,120]
[340778304,1729798248023,-2884.96,0.00063499,120]
[340778305,1729798248032,-2884.98000001,0.00063499,120]
[340778306,1729798248043,-1000.0,0.000635,120]
[340778307,1729798248056,-1000000.0,0.000635,120]
[340778308,1729798248066,-1000000.0,0.000635,120]
[340778309,1729798248076,-335.231859,0.000635,110]
[340778310,1729798248086,-335.231859,0.000635,110]
[340778311,1729798248096,-335.231859,0.000635,110]
[340778312,1729798248105,-335.231859,0.000635,110]
[340778313,1729798248115,-152.20258,0.000635,120]
[340778314,1729798248126,-151.0,0.000635,120]
[340778315,1729798248136,-151.0,0.000635,120]
[340778316,1729798248145,-2568.135753,0.000635,120]
[340778317,1729798248155,-2568.135753,0.000635,120]
[340778318,1729798248165,-2568.135753,0.000635,120]
[340778319,1729798248175,-2568.135753,0.000635,120]
[340778320,1729798248184,-175.876628,0.000635,120]
[340778321,1729798248195,-3719.29207797,0.00063511,15]
[340778322,1729798248204,-1320.588363,0.00063879,120]
[340778323,1729798248214,-186.273799,0.00063879,120]
[340778324,1729798248226,-152.33642,0.00063879,120]
[340778325,1729798248236,-292.192067,0.00063879,120]
[340778326,1729798248246,-184.885818,0.00063879,120]
[340778327,1729798248256,-1320.588363,0.00063889,120]
[340778328,1729798248266,-1320.588363,0.00063889,120]
[340778329,1729798248276,-186.273799,0.00063889,120]
[340778330,1729798248287,-186.273799,0.00063889,120]
[340778331,1729798248297,-292.192067,0.00063889,120]
[340778332,1729798248306,-292.192067,0.00063889,120]
[340778333,1729798248316,-500.0,0.00063972,120]
[340778334,1729798248325,-600.44,0.00063999,120]
[340778335,1729798248335,-600.44,0.00063999,120]
[340778336,1729798248344,-600.44,0.00063999,120]
[340778337,1729798248354,-600.44,0.00063999,120]
[340778338,1729798248363,-600.47,0.00063999,120]
[340778339,1729798248372,-598.64,0.00063999,120]
[340778340,1729798248382,-598.64,0.00063999,120]
[340778341,1729798248391,-598.64,0.00063999,120]
[340778342,1729798248401,-598.64,0.00063999,120]
[340778343,1729798248411,-598.67,0.00063999,120]
[340778344,1729798248420,-1824.17,0.00063999,120]
[340778345,1729798248430,-1824.17,0.00063999,120]
[340778346,1729798248439,-1824.17,0.00063999,120]
[340778347,1729798248448,-1824.17,0.00063999,120]
[340778348,1729798248458,-1824.2519056,0.00063999,120]
[340778349,1729798248468,-815.26561795,0.00064,120]
[340778350,1729798248477,-145321.47139385,0.00064,120]
[340778351,1729798248568,-500.0,0.00063399,120]
[340778352,1729798248578,-500.0,0.00063455,120]
[340778353,1729798248588,-500.0,0.00063456,120]
[340778354,1729798248597,-500.0,0.00063456,120]
[340778355,1729798248606,-1709.78452067,0.00064,120]
[340778356,1729798248618,-1441.40088987,0.00064,120]
[340778357,1729798248629,-6793.09202266,0.00064,120]
[340778358,1729798248746,-500.0,0.00063456,120]
[340778359,1729798248757,-2554.77849047,0.00064,120]
[340778360,1729798248768,-775.33119214,0.00064,120]
[340778361,1729798248779,-1393.89007765,0.00064,120]
[340778362,1729798248855,-301.616,0.00063499,120]
[340778363,1729798248867,-198.384,0.00063499,120]
[340778364,1729798248877,-500.0,0.00063499,120]
[340778365,1729798248886,-428.64090741,0.00063499,120]
[340778366,1729798248897,-71.35909259,0.00063499,120]
[340778367,1729798248907,-228.64090741,0.00063499,120]
[340778368,1729798248918,-271.35909259,0.00063499,120]
[340778369,1729798248927,-500.0,0.00063499,120]
[340778370,1729798248936,-359.79516447,0.00063499,120]
[340778371,1729798248946,-21923.81451578,0.00064,120]
[340778372,1729798248957,-300.0,0.00064,120]
[340778373,1729798248968,-2500.0,0.00064,120]
[340778374,1729798248978,-123519.56027833,0.00064,120]
[340778375,1729798248989,-392.857998,0.00064,120]
[340778376,1729798249001,-8369.63667012,0.00064,120]
[340778377,1729798249013,-5024.77761419,0.00064,120]
[340778378,1729798249024,-96068.92865221,0.00064,120]
[340778379,1729798249038,-5075.82521046,0.00064,120]
[340778380,1729798249050,-14992.00992517,0.00064,120]
[340778381,1729798249063,-6105.237942,0.00064,120]
[340778382,1729798249078,-1048.2592842,0.00064,120]
[340778383,1729798249089,-612.34305062,0.00064,120]
[340778384,1729798249100,-451.23409272,0.00064,120]
[340778385,1729798249111,-520.406337,0.00064,120]
[340778386,1729798249121,-31272.78798108,0.00064,120]
[340778401,1729798261993,482.07892231,0.00012804,2]
[340778402,1729798405307,250.0,0.0001,2]
[340779057,1729798718053,150.0,0.0001619,3]
[340779121,1729799432000,-471.55435349,0.00014962,2]
[340779122,1729799432012,-3823.46921951,0.00014962,2]
[340779123,1729799432023,-5210.05544745,0.00015038,2]
[340779124,1729799432034,-5210.05544745,0.0001504,2]
[340779125,1729799432044,-5210.05544745,0.00015042,2]
[340779126,1729799432054,-150.0,0.00015124,2]
[340779127,1729799432064,-3345.55677545,0.00015142,2]
[340779128,1729799432074,-158.76,0.00015342,2]
[340779129,1729799432084,-157.07,0.00015342,2]
[340779130,1729799432093,-12197.18582854,0.00015342,2]
[340779131,1729799432104,-344.34915,0.00015342,2]
[340779132,1729799432115,-411.22701111,0.00015342,2]
[340779133,1729799432125,-32967.21388324,0.00015342,2]
[340779134,1729799432134,-218.98734392,0.00019625,2]
[340779135,1729799432144,-464.4672199,0.000198,2]
[340779136,1729799432153,-500.0,0.000198,2]
[340779137,1729799432161,-543.25481841,0.000198,2]
[340779138,1729799432170,-1000.0,0.0002117,2]
[340779139,1729799432180,-373.84302182,0.00023173,2]
[340779140,1729799432189,-585.43,0.00035438,2]
[340779141,1729799432198,-300.0,0.00035615,2]
[340779142,1729799432207,-157.07,0.00035616,2]
[340779143,1729799432216,-961.68,0.00052759,2]
[340779144,1729799432226,-250.0,0.00055109,120]
[340779145,1729799432234,-1406.25,0.00055762,2]
[340779146,1729799432244,-157.07,0.0005589,2]
[340779147,1729799432255,-151.11,0.00058322,2]
[340779148,1729799432265,-250.0,0.00059464,120]
[340779149,1729799432274,-800.0,0.00059508,120]
[340779150,1729799432284,-150.43,0.00059769,2]
[340779151,1729799432294,-654.28,0.0006,120]
[340779152,1729799432304,-2285.0,0.0006,7]
[340779153,1729799432314,-225.23,0.00060101,2]
[340779154,1729799432323,-500.0,0.00060142,2]
[340779156,1729799432332,-250.0,0.00060272,120]
[340779158,1729799432341,-200.0,0.00060324,2]
[340779160,1729799432351,-200.0,0.00060453,120]
[340779161,1729799432360,-23900.0,0.00060601,2]
[340779162,1729799432370,-151.11,0.00060711,2]
[340779163,1729799432379,-231.69,0.00061229,2]
[340779164,1729799432388,-159.51,0.00061305,2]
[340779165,1729799432397,-500.0,0.00061999,120]
[340779166,1729799432406,-239.04561631,0.00061999,120]
[340779167,1729799432415,-500.0,0.00061999,120]
[340779168,1729799432425,-420.0911604,0.00061999,120]
[340779169,1729799432434,-500.0,0.00061999,120]
[340779170,1729799432443,-500.0,0.00061999,120]
[340779171,1729799432452,-500.0,0.00061999,120]
[340779172,1729799432462,-500.0,0.00061999,120]
[340779173,1729799432471,-500.0,0.00061999,120]
[340779174,1729799432481,-163.13479769,0.00061999,120]
[340779175,1729799432491,-1176.59972494,0.00061999,120]
[340779176,1729799432501,-141654.6921792,0.00062,120]
[340779177,1729799432511,-500.0,0.00062254,31]
[340779178,1729799432520,-202.8258986,0.00062254,31]
[340779179,1729799432529,-11515.73781424,0.00062255,14]
[340779180,1729799432540,-24156.46463439,0.00062255,14]
[340779181,1729799432552,-285.29701288,0.00062255,14]
[340779182,1729799432562,-40086.22575936,0.00062255,14]
[340779183,1729799432574,-3410.50407077,0.00062255,14]
[340779184,1729799432585,-73252.37022836,0.00062255,14]
[340779185,1729799432594,-151.92,0.00062255,120]
[340779186,1729799432603,-151.92,0.00062255,120]
[340779187,1729799432612,-1435.183,0.00062264,120]
[340779188,1729799432623,-405.6174,0.00062265,2]
[340779189,1729799432631,-37684.0534,0.00062265,2]
[340779190,1729799432641,-100000.0,0.00062265,2]
[340779191,1729799432650,-1000.0,0.00062265,30]
[340779192,1729799432659,-245000.0,0.00062265,2]
[340779193,1729799432668,-195.06925222,0.00062265,44]
[340779194,1729799432677,-210.82483413,0.00062365,34]
[340779195,1729799432686,-411.03,0.00062465,120]
[340779196,1729799432695,-413.327596,0.00062465,120]
[340779197,1729799432705,-210.53226796,0.00062465,120]
[340779198,1729799432713,-418.75408893,0.00062465,120]
[340779199,1729799432723,-478.0,0.000626,30]
[340779200,1729799432731,-167.56,0.00062716,2]
[340779201,1729799432741,-929.0290722,0.0006288,2]
[340779202,1729799432751,-151.11,0.00063101,2]
[340779203,1729799432760,-150.0,0.00063231,30]
[340779204,1729799432769,-150.0,0.00063237,30]
[340779205,1729799432778,-150.0,0.00063238,30]
[340779206,1729799432787,-150.0,0.00063241,30]
[340779207,1729799432796,-150.0,0.00063246,30]
[340779208,1729799432806,-150.0,0.00063249,30]
[340779209,1729799432815,-284.46816432,0.0006325,30]
[340779210,1729799432949,-150.0,0.00063253,30]
[340779211,1729799432959,-150.0,0.00063253,30]
[340779212,1729799432968,-150.0,0.00063255,30]
[340779213,1729799432979,-150.0,0.0006326,30]
[340779214,1729799432988,-150.0,0.00063262,30]
[340779215,1729799432999,-150.0,0.00063264,30]
[340779216,1729799433008,-150.0,0.00063266,30]
[340779217,1729799433019,-150.0,0.00063269,30]
[340779218,1729799433028,-150.0,0.0006327,30]
[340779219,1729799433037,-150.0,0.00063272,30]
[340779220,1729799433047,-150.0,0.00063272,30]
[340779221,1729799433056,-150.0,0.00063275,30]
[340779222,1729799433066,-150.0,0.00063282,30]
[340779223,1729799433075,-150.0,0.00063287,30]
[340779224,1729799433085,-150.0,0.00063292,30]
[340779225,1729799433095,-150.0,0.00063293,30]
[340779226,1729799433104,-150.0,0.00063294,30]
[340779227,1729799433114,-150.0,0.00063295,30]
[340779228,1729799433124,-150.0,0.00063307,30]
[340779229,1729799433134,-150.0,0.00063312,30]
[340779230,1729799433143,-150.0,0.00063316,30]
[340779231,1729799433153,-150.0,0.00063318,30]
[340779232,1729799433163,-150.0,0.00063319,30]
[340779233,1729799433172,-150.0,0.00063322,30]
[340779234,1729799433181,-150.0,0.00063333,30]
[340779235,1729799433191,-300.0,0.00063341,30]
[340779236,1729799433200,-150.0,0.00063351,30]
[340779237,1729799433209,-150.0,0.00063354,30]
[340779238,1729799433219,-150.0,0.00063355,30]
[340779239,1729799433228,-391.2,0.00063357,60]
[340779240,1729799433237,-150.0,0.00063359,30]
[340779241,1729799433247,-150.0,0.00063359,60]
[340779242,1729799433256,-150.0,0.0006337,30]
[340779243,1729799433267,-150.0,0.00063374,30]
[340779244,1729799433277,-150.0,0.00063376,30]
[340779245,1729799433288,-150.0,0.00063389,30]
[340779246,1729799433297,-150.0,0.00063389,30]
[340779247,1729799433306,-150.0,0.00063394,30]
[340779248,1729799433316,-150.0,0.00063401,30]
[340779249,1729799433326,-150.0,0.00063405,30]
[340779250,1729799433335,-150.0,0.00063409,30]
[340779251,1729799433345,-150.0,0.00063409,30]
[340779252,1729799433355,-150.0,0.00063417,30]
[340779253,1729799433364,-150.0,0.00063421,30]
[340779254,1729799433374,-150.0,0.00063422,30]
[340779255,1729799433383,-150.0,0.00063426,30]
[340779256,1729799433393,-150.0,0.0006343,30]
[340779257,1729799433402,-150.0,0.00063431,30]
[340779258,1729799433412,-150.0,0.0006344,30]
[340779259,1729799433421,-150.0,0.00063443,30]
[340779260,1729799433432,-150.0,0.00063452,30]
[340779261,1729799433441,-150.0,0.00063459,30]
[340779262,1729799433450,-150.0,0.00063459,30]
[340779263,1729799433460,-150.0,0.00063469,30]
[340779264,1729799433470,-150.0,0.00063474,30]
[340779265,1729799433481,-150.0,0.00063476,30]
[340779266,1729799433490,-150.0,0.00063483,30]
[340779267,1729799433501,-150.0,0.0006349,30]
[340779268,1729799433513,-150.0,0.0006349,30]
[340779269,1729799433523,-150.0,0.0006349,30]
[340779270,1729799433532,-150.0,0.00063494,30]
[340779271,1729799433542,-150.0,0.00063499,30]
[340779272,1729799433552,-454.0,0.000635,50]
[340779273,1729799433562,-5275.58392,0.000639,120]
[340779274,1729799433572,-41579.765,0.000639,120]
[340779275,1729799433582,-5483.9175376,0.000639,2]
[340779276,1729799433591,-203.61945007,0.000639,2]
[340779277,1729799433600,-1293.55589684,0.000639,2]
[340779278,1729799433610,-500.0,0.00063972,120]
[340779279,1729799433619,-151.92,0.0006399,120]
[340779280,1729799433629,-151.92,0.0006399,120]
[340779281,1729799433638,-151.92,0.0006399,120]
[340779282,1729799433648,-151.92,0.0006399,120]
[340779283,1729799433657,-151.92,0.0006399,120]
[340779284,1729799433668,-151.92,0.0006399,120]
[340779285,1729799433678,-151.92,0.0006399,120]
[340779286,1729799433687,-151.92,0.0006399,120]
[340779287,1729799433697,-151.92,0.0006399,120]
[340779288,1729799433706,-151.92,0.0006399,120]
[340779289,1729799433715,-151.92,0.0006399,120]
[340779290,1729799433725,-151.92,0.0006399,120]
[340779291,1729799433734,-318.04374188,0.00063999,120]
[340779292,1729799433744,-50000.0,0.00064,54]
[340779293,1729799433754,-50000.0,0.00064,64]
[340779294,1729799433763,-1000.0,0.00064,120]
[340779295,1729799433772,-214301.67561002,0.00064,120]
[340779296,1729799433785,-7530.89625079,0.00064,120]
[340779297,1729799433795,-5578.16485217,0.00064,120]
[340779298,1729799433806,-575.10458265,0.00064,120]
[340779309,1729799438103,-353.01173433,0.00064,120]
[340779310,1729799438114,-1295.99793836,0.00064,120]
[340779311,1729799438125,-746.48651101,0.00064,120]
[340779312,1729799438166,-408.0085986,0.00060324,2]
[340779313,1729799438177,-591.9914014,0.00060324,2]
[340779314,1729799438187,-484.7085986,0.00064,120]
[340779315,1729799438197,-2022.54094756,0.00064,120]
[340779316,1729799438209,-473.3383626,0.00064,120]
[340779317,1729799438219,-927.94338123,0.00064,120]
[340779318,1729799438231,-300.32,0.00064,120]
[340779319,1729799438243,-995.36520928,0.00064,120]
[340779320,1729799438255,-394.12782113,0.00064,120]
[340779321,1729799438308,-23333.39692139,0.00064,120]